Workbook

Sheet Summary
A3: Paragon Mortgages (No.18) PLC
A5: Information as at the Principal Determination Date | B5: 2013-11-29 | C5: 2014-02-28 | D5: 2014-05-30 | E5: 2014-08-29 | F5: 2014-11-28 | G5: 2015-02-27 | H5: 2015-05-29 | I5: 2015-08-28 | J5: 2015-11-30 | K5: 2016-02-29 | L5: 2016-05-31 | M5: 2016-08-31 | N5: 2016-11-30
A6: Mortgage Asset Balance | B6: 272959 | C6: 272316 | D6: 269971 | E6: 268063 | F6: 262638 | G6: 259863.3502 | H6: 236361.3177 | I6: 169290.4446 | J6: 122205.3523 | K6: 94047.95741 | L6: 79723.96171 | M6: 71874.76036 | N6: 0
A7: Retained Available Redemption Funds for the funding of future Discretionary Further Advances | B7: 0 | C7: 0 | D7: 0 | E7: 0 | F7: 0 | G7: 0 | H7: 0 | I7: 0 | J7: 0 | K7: 0 | L7: 0 | M7: 0 | N7: 0
A8: Total Assets | B8: =SUM(B6:B7) -> 272959 | C8: 272316 | D8: 269971 | E8: 268063 | F8: 262638 | G8: 259863.3502 | H8: =SUM(H6:H7) -> 236361.3177 | I8: 169290.4446 | J8: =SUM(J6:J7) -> 122205.3523 | K8: 94047.95741 | L8: =SUM(L6:L7) -> 79723.96171 | M8: 71874.76036 | N8: =SUM(N6:N7) -> 0
A9: Total Notes | B9: =SUM(B10:B13) -> 272959 | C9: 272316 | D9: 269971 | E9: 268063 | F9: 262638 | G9: 259863 | H9: =SUM(H10:H13) -> 236361 | I9: 169290 | J9: =SUM(J10:J13) -> 122205 | K9: 94048 | L9: =SUM(L10:L13) -> 79724 | M9: 71875 | N9: =SUM(N10:N13) -> 0
A10: Class A Notes | B10: 238059 | C10: 237416 | D10: 235071 | E10: 233163 | F10: 227738 | G10: 224963 | H10: 201461 | I10: 134390 | J10: 87305 | K10: 59148 | L10: 44824 | M10: 36975 | N10: 0
A11: Class B Notes | B11: 15700 | C11: 15700 | D11: 15700 | E11: 15700 | F11: 15700 | G11: 15700 | H11: 15700 | I11: 15700 | J11: 15700 | K11: 15700 | L11: 15700 | M11: 15700 | N11: 0
A12: Class C Notes | B12: 13700 | C12: 13700 | D12: 13700 | E12: 13700 | F12: 13700 | G12: 13700 | H12: 13700 | I12: 13700 | J12: 13700 | K12: 13700 | L12: 13700 | M12: 13700 | N12: 0
A13: Class D Notes | B13: 5500 | C13: 5500 | D13: 5500 | E13: 5500 | F13: 5500 | G13: 5500 | H13: 5500 | I13: 5500 | J13: 5500 | K13: 5500 | L13: 5500 | M13: 5500 | N13: 0
A14: Class B, C and D Notes as a % of the Total Notes | B14: =SUM(B11:B13)/B9 -> 0.12785803 | C14: 0.1281599318 | D14: 0.1292731442 | E14: 0.1301932755 | F14: 0.1328825227 | G14: 0.1343015358 | H14: =SUM(H11:H13)/H9 -> 0.1476554931 | I14: 0.2061551184 | J14: =SUM(J11:J13)/J9 -> 0.2855856962 | K14: 0.3710871045 | L14: =SUM(L11:L13)/L9 -> 0.4377602729 | M14: 0.4855652174 | N14: 0
A15: Lifetime Redemption Rate | B15: 0.0029 | C15: 0.0074 | D15: 0.0167 | E15: 0.0196 | F15: 0.0318 | G15: 0.0334 | H15: 0.0802 | I15: 0.2142 | J15: 0.3021 | K15: 0.3487 | L15: 0.3623 | M15: 0.3605 | N15: 1
A16: Quarterly Redemption Rate | B16: 0.0007 | C16: 0.0029 | D16: 0.0088 | E16: 0.0071 | F16: 0.0202 | G16: 0.0106 | H16: 0.0904 | I16: 0.2838 | J16: 0.2781 | K16: 0.2304 | L16: 0.1523 | M16: 0.0985 | N16: 1
A17: Further Advances released in the quarter | B17: 0 | C17: 0 | D17: 0 | E17: 0 | F17: 0 | G17: 0 | H17: 0 | I17: 0 | J17: 0 | K17: 0 | L17: 0 | M17: 0 | N17: 0
A18: First Loss Fund Balance | B18: 8190 | C18: 8190 | D18: 8190 | E18: 8190 | F18: 8190 | G18: 8190 | H18: 8190 | I18: 8190 | J18: 8190 | K18: 8190 | L18: 8190 | M18: 8190 | N18: 0
A19: Liquidity Amount of the First Loss Fund (3% of the Class A, B and C Notes) | B19: =SUM(B10:B12)*3% -> 8023.77 | C19: 8004.48 | D19: 7934.13 | E19: 7876.89 | F19: 7714.14 | G19: 7630.89 | H19: =SUM(H10:H12)*3% -> 6925.83 | I19: 4913.7 | J19: =SUM(J10:J12)*3% -> 3501.15 | K19: 2656.44 | L19: =SUM(L10:L12)*3% -> 2226.72 | M19: 1991.25 | N19: =SUM(N10:N12)*3% -> 0
A20: Liquidity Excess Amount (First Loss Fund - Liquidity Amount) | B20: =B18-B19 -> 166.23 | C20: 185.52 | D20: 255.87 | E20: 313.11 | F20: 475.86 | G20: 559.11 | H20: =H18-H19 -> 1264.17 | I20: 3276.3 | J20: =J18-J19 -> 4688.85 | K20: 5533.56 | L20: =L18-L19 -> 5963.28 | M20: 6198.75 | N20: =N18-N19 -> 0
A21: First Loss Fund as a % of the Assets | B21: =+B18/B8 -> 0.03000450617 | C21: 0.03007535363 | D21: 0.03033659171 | E21: 0.03055251937 | F21: 0.03118360633 | G21: 0.03151656436 | H21: =+H18/H8 -> 0.03465033991 | I21: 0.04837839502 | J21: =+J18/J8 -> 0.0670183412 | K21: =+K18/K8 -> 0.087083231 | L21: =+L18/L8 -> 0.1027294658 | M21: =+M18/M8 -> 0.113948206 | N21: 0
A22: Opening PDL Balance | B22: 0 | C22: 0 | D22: 0 | E22: 0 | F22: 0 | G22: 0 | H22: 0 | I22: 0 | J22: 0 | K22: 0 | L22: 0 | M22: 0 | N22: 0
A23: Quarterly Losses | B23: 0 | C23: 0 | D23: 0 | E23: 0 | F23: 0 | G23: =+G101+G136 -> 2 | H23: -2 | I23: 0 | J23: 0 | K23: 0 | L23: 0 | M23: =+M101+M136 -> 0 | N23: 0
A24: Quarterly Loss Rate (annualised) | B24: =1-(1-B23/B8)^4 -> 0 | C24: =1-(1-C23/C8)^4 -> 0 | D24: 0 | E24: 0 | F24: =1-(1-F23/F8)^4 -> 0 | G24: 3.078505545e-05 | H24: =1-(1-H23/H8)^4 -> -3.384691547e-05 | I24: 0 | J24: =1-(1-J23/J8)^4 -> 0 | K24: 0 | L24: =1-(1-L23/L8)^4 -> 0 | M24: 0 | N24: 0
A25: PDL Replenishment made during the quarter (-ve = recoveries) | B25: 0 | C25: 0 | D25: 0 | E25: 0 | F25: 0 | G25: 2 | H25: -2 | I25: 0 | J25: 0 | K25: 0 | L25: 0 | M25: 0 | N25: 0
A26: Outstanding PDL at end of the quarter | B26: =B22+B23-B25 -> 0 | C26: 0 | D26: 0 | E26: 0 | F26: 0 | G26: 0 | H26: =H22+H23-H25 -> 0 | I26: 0 | J26: =J22+J23-J25 -> 0 | K26: 0 | L26: =L22+L23-L25 -> 0 | M26: 0 | N26: =N22+N23-N25 -> 0
A27: Spread Trap repayment in the quarter | B27: N/A | C27: N/A | D27: N/A | E27: N/A | F27: N/A | G27: N/A | H27: N/A | I27: N/A | J27: N/A | K27: N/A | L27: N/A | M27: N/A | N27: N/A
A28: Spread % (WA Funding Rate less WA Interest Rate) | B28: 0.0209 | C28: 0.0208 | D28: 0.0209 | E28: 0.0206 | F28: 0.0204 | G28: 0.0205 | H28: 0.0243 | I28: 0.0294 | J28: 0.0323 | K28: 0.0314 | L28: 0.0304 | M28: 0.0299 | N28: 0
A29: Total Income as a % of the Assets | B29: 0.0093 | C29: 0.0115 | D29: 0.0115 | E29: 0.0116 | F29: 0.0114 | G29: 0.0116 | H29: 0.011 | I29: 0.0104 | J29: 0.0115 | K29: 0.012 | L29: 0.0127 | M29: 0.0126 | N29: 0
A30: Quarterly surplus income to the Issuer | B30: 1123 | C30: 1626 | D30: 1609 | E30: 1606 | F30: 1546 | G30: 1558 | H30: 1410 | I30: 1139 | J30: 957 | K30: 734 | L30: 599 | M30: 490 | N30: 8649
A31: Surplus Income as a % of the Assets | B31: =+B30/273000 -> 0.004113553114 | C31: =+C30/B8 -> 0.005956938588 | D31: 0.0059085768 | E31: 0.005948787092 | F31: 0.00576730097 | G31: 0.005932119495 | H31: 0.005425928662 | I31: 0.004818893426 | J31: 0.005653006597 | K31: 0.006006283571 | L31: 0.006369091009 | M31: 0.006146207357 | N31: 0
A32: Losses as a % of the Assets | B32: =+B23/273000 -> 0 | C32: =+C23/B8 -> 0 | D32: 0 | E32: 0 | F32: 0 | G32: 7.615044281e-06 | H32: -7.696352713e-06 | I32: 0 | J32: 0 | K32: 0 | L32: 0 | M32: 0 | N32: 0
A33: Number of Properties in Possession | B33: =+B99+B134 -> 0 | C33: 0 | D33: 0 | E33: 0 | F33: 0 | G33: 0 | H33: 0 | I33: 0 | J33: 0 | K33: =+K99+K134 -> 0 | L33: 0 | M33: =+M99+M134 -> 0 | N33: 0
A34: Appointment of a Receiver of Rent | B34: 0 | C34: 0 | D34: 0 | E34: 0 | F34: 1 | G34: 0 | H34: 0 | I34: 0 | J34: 0 | K34: =+K100+K135 -> 0 | L34: 0 | M34: =+M100+M135 -> 0 | N34: 0
A35: Average Number of months (Possessions) in Arrears at the Sale Date | B35: 0 | C35: 0 | D35: 0 | E35: 0 | F35: 0 | G35: 0 | H35: 0 | I35: 0 | J35: 0 | K35: 0 | L35: 0 | M35: 0 | N35: 0
A36: Average Number of months (RoR) in Arrears at the Sale Date | B36: 0 | C36: 0 | D36: 0 | E36: 0 | F36: 0 | G36: 2 | H36: 0 | I36: 0 | J36: 0 | K36: 0 | L36: 0 | M36: 0 | N36: 0
A37: Arrears excluding Receiver of Rent and Possession Cases
A38: Performing Loans | B38: 0.9992 | C38: 0.9985 | D38: 0.9988 | E38: 0.9992169409 | F38: 1 | G38: 1 | H38: 1 | I38: 1 | J38: 1 | K38: 1 | L38: 1 | M38: 1 | N38: 0
A39: >1 to 2 months arrears | B39: 0.0008 | C39: 0.0015 | D39: 0.0008 | E39: 0.0007830591148 | F39: 0 | G39: 0 | H39: 0 | I39: 0 | J39: 0 | K39: 0 | L39: 0 | M39: 0 | N39: 0
A40: >2 to 3 months arrears | B40: 0 | C40: 0 | D40: 0.0004 | E40: 0 | F40: 0 | G40: 0 | H40: 0 | I40: 0 | J40: 0 | K40: 0 | L40: 0 | M40: 0 | N40: 0
A41: >3 months arrears | B41: 0 | C41: 0 | D41: 0 | E41: 0 | F41: 0 | G41: 0 | H41: 0 | I41: 0 | J41: 0 | K41: 0 | L41: 0 | M41: 0 | N41: 0
A42: Total | B42: =SUM(B38:B41) -> 1 | C42: 1 | D42: 1 | E42: 1 | F42: 1 | G42: 1 | H42: 1 | I42: 1 | J42: 1 | K42: 1 | L42: 1 | M42: =SUM(M38:M41) -> 1 | N42: 0
A43: Total Value of Arrears (£000's) | B43: 2 | C43: 2 | D43: 2 | E43: 1.515840396 | F43: 0.9641901924 | G43: 0.7402699699 | H43: 4.235970157 | I43: 0.7888599646 | J43: 1.31202 | K43: 3.18304 | L43: 0 | M43: 0 | N43: 0
A44: Total Value of Arrears as a % of the Notes Issued (£273,000,000) | B44: =+B43/273000 -> 7.326007326e-06 | C44: 7.326007326e-06 | D44: 7.326007326e-06 | E44: 5.552528924e-06 | F44: 3.531832207e-06 | G44: 2.711611612e-06 | H44: =+H43/273000 -> 1.55163742e-05 | I44: 2.88959694e-06 | J44: =+J43/273000 -> 4.805934066e-06 | K44: 1.165948718e-05 | L44: =+L43/273000 -> 0 | M44: 0 | N44: =+N43/273000 -> 0
A46: Underlying Assets | B46: 2013-11-29 | C46: 2014-02-28 | D46: 2014-05-30 | E46: 2014-08-29 | F46: 2014-11-28 | G46: 2015-02-27 | H46: =+H5 -> 2015-05-29 | I46: 2015-08-28 | J46: 2015-11-30 | K46: 2016-02-29 | L46: 2016-05-31 | M46: 2016-08-31 | N46: =+N5 -> 2016-11-30
A47: Weighted Average LTV | B47: 0.7271 | C47: 0.7269 | D47: 0.7264 | E47: 0.7266377591 | F47: 0.7270894911 | G47: 0.7262996891 | H47: 0.7252136844 | I47: 0.722631894 | J47: 0.718359825 | K47: 0.720321965 | L47: 0.7172532039 | M47: 0.7152259849 | N47: 0
A48: Weighted Average Nationwide Indexed LTV | B48: 0.7007 | C48: 0.6847 | D48: 0.671 | E48: 0.6363330143 | F48: 0.6303378691 | G48: 0.6290306669 | H48: 0.6333480955 | I48: 0.6177473055 | J48: 0.6091992213 | K48: 0.6123865413 | L48: 0.6107620389 | M48: 0.591368934 | N48: 0
A49: Weighted Average Halifax Indexed LTV | B49: 0.702 | C49: 0.6957 | D49: 0.6792 | E49: 0.6531865228 | F49: 0.6293179117 | G49: 0.6344533392 | H49: 0.6233520078 | I49: 0.5959538019 | J49: 0.5829519248 | K49: 0.5884188713 | L49: 0.5681515435 | M49: 0.5518202941 | N49: n/a
A50: % of Standard Variable Rate Mortgages | B50: 0 | C50: 0 | D50: 0.003 | E50: 0.003003516769 | F50: 0.004095215997 | G50: 0.003648148149 | H50: 0.004010893192 | I50: 0.006395081853 | J50: 0.008182385066 | K50: 0.01063214213 | L50: 0.01026440147 | M50: 0.01138534231 | N50: 0
A51: % of Fixed Rate Mortgages (reverting to SVR) | B51: 0.0029 | C51: 0.003 | D51: 0 | E51: 0 | F51: 0 | G51: 0 | H51: 0 | I51: 0 | J51: 0 | K51: 0 | L51: 0 | M51: 0 | N51: 0
A52: % of Fixed Rate Mortgages (reverting to Libor plus a variable margin) | B52: 0.3789 | C52: 0.3794 | D52: 0.378 | E52: 0.3749706263 | F52: 0.3757008653 | G52: 0.365392037 | H52: 0.2216261273 | I52: 0.1289785931 | J52: 0.005223124338 | K52: 0.006835099211 | L52: 0.008006297433 | M52: 0 | N52: 0
A53: % of Base Rate Mortgages | B53: 0 | C53: 0 | D53: 0 | E53: 0 | F53: 0 | G53: 0 | H53: 0 | I53: 0 | J53: 0 | K53: 0 | L53: 0 | M53: 0 | N53: 0
A54: % of Libor Linked Mortgages (reverting to SVR) | B54: 0.0134 | C54: 0.0134 | D54: 0.0135 | E54: 0.01359976087 | F54: 0.0005125171535 | G54: 0.0005179885887 | H54: 0.0005694935673 | I54: 0 | J54: 0 | K54: 0 | L54: 0 | M54: 0 | N54: 0
A55: % of Libor Linked Mortgages (reverting to Libor plus a variable margin) | B55: 0.6048 | C55: 0.6043 | D55: 0.6055 | E55: 0.5993516336 | F55: 0.6067924956 | G55: 0.5896052133 | H55: 0.4878056602 | I55: 0.2799878379 | J55: 0.1822708756 | K55: 0.1836679321 | L55: 0.1922766223 | M55: 0.2110110041 | N55: 0
A56: % of Libor Linked Mortgages plus a Variable Margin | B56: 0 | C56: 0 | D56: 0 | E56: 0.009074462459 | F56: 0.01289890592 | G56: 0.04083661302 | H56: 0.2859878258 | I56: 0.5846384872 | J56: 0.804323615 | K56: 0.7989130293 | L56: 0.7894526788 | M56: 0.7776036536 | N56: 0
A57: Weighted Average Loan Size | B57: 146594.56 | C57: 146772.11 | D57: 146405.37 | E57: 146242.9139 | F57: 144385.6794 | G57: 144128.314 | H57: 142558.0927 | I57: 140373.503 | J57: 142099.2469 | K57: 135907.4529 | L57: 135125.3588 | M57: 136644.0311 | N57: 0
A58: Weighted Average Interest Rate | B58: 0.03884 | C58: 0.03884 | D58: 0.03884 | E58: 0.03891543585 | F58: 0.03884554525 | G58: 0.03892606524 | H58: 0.04271776254 | I58: 0.04806385858 | J58: 0.05168136933 | K58: 0.05159073083 | L58: 0.05145315557 | M58: 0.05142705059 | N58: 0
A59: Weighted Average Maturity Date (years) | B59: 19.95 | C59: 19.7 | D59: 19.47 | E59: 19.21885769 | F59: 18.97865782 | G59: 18.71058767 | H59: 18.54025734 | I59: 18.22121856 | J59: 17.6719632 | K59: 17.43876914 | L59: 16.97382741 | M59: 16.79611943 | N59: 0
A60: Weighted Average Seasoning (months) | B60: 6.2 | C60: 9.15 | D60: 12.17 | E60: 15.19377316 | F60: 18.00444006 | G60: 20.9469257 | H60: 23.8696801 | I60: 26.77230181 | J60: 29.96674503 | K60: 33.02264432 | L60: 36.15911431 | M60: 39.25739718 | N60: 0
A61: % of Interest Only Mortgages (optional switching to repayment) | B61: 0.9182 | C61: 0.9191 | D61: 0.9198 | E61: 0.9200990205 | F61: 0.9318157336 | G61: 0.9321679527 | H61: 0.9346190134 | I61: 0.9331906013 | J61: 0.9228746849 | K61: 0.9130461898 | L61: 0.9092060272 | M61: 0.9072638941 | N61: 0
A62: % of Interest Only Mortgages (mandatory switching to repayment) | B62: 0.0155 | C62: 0.0156 | D62: 0.0157 | E62: 0.01581901314 | F62: 0.003807266884 | G62: 0.003847911794 | H62: 0.004230519865 | I62: 0.005906601832 | J62: 0.008182385066 | K62: 0.01063214213 | L62: 0.01026440147 | M62: 0.01138534231 | N62: 0
A63: % of Interest Only Mortgages | B63: 0.0008 | C63: 0.0008 | D63: 0.0008 | E63: 0.0007842645019 | F63: 0.0008004662672 | G63: 0.0003182249438 | H63: 0.0003498668936 | I63: 0.0004884800215 | J63: 0 | K63: 0 | L63: 0 | M63: 0 | N63: 0
A64: % of Repayment Mortgages | B64: 0.0655 | C64: 0.0646 | D64: 0.0637 | E64: 0.06329770184 | F64: 0.06357653326 | G64: 0.06366591052 | H64: 0.06080059982 | I64: 0.0604143168 | J64: 0.06894293007 | K64: 0.07632166809 | L64: 0.08052957131 | M64: 0.08135076362 | N64: 0
A65: % of Mortgages in London | B65: 0.2126 | C65: 0.2131 | D65: 0.2124 | E65: 0.2134354742 | F65: 0.2029553978 | G65: 0.2014732143 | H65: 0.183677778 | I65: 0.1529803102 | J65: 0.1507475749 | K65: 0.1418527078 | L65: 0.1204557104 | M65: 0.1197347423 | N65: 0
A66: % of Mortgages in the South East | B66: 0.3353 | C66: 0.3361 | D66: 0.3352 | E66: 0.333588799 | F66: 0.3369696283 | G66: 0.338015735 | H66: 0.3371925327 | I66: 0.3278414587 | J66: 0.3090664182 | K66: 0.2858894619 | L66: 0.2885657567 | M66: 0.2817775935 | N66: 0
A67: % of Owner Occupied Mortgages | B67: 0 | C67: 0 | D67: 0 | E67: 0 | F67: 0 | G67: 0 | H67: 0 | I67: 0 | J67: 0 | K67: 0 | L67: 0 | M67: 0 | N67: 0
A68: % of Investment Home Loans - Professional Landlords | B68: 0.4513 | C68: 0.4506 | D68: 0.4529 | E68: 0.4549749764 | F68: 0.4488684316 | G68: 0.4484387727 | H68: 0.4723122855 | I68: 0.5201504323 | J68: 0.5623602401 | K68: 0.5817322488 | L68: 0.5856129771 | M68: 0.5968066365 | N68: 0
A69: % of Investment Home Loans - Emerging Professional Landlords | B69: 0.5487 | C69: 0.5494 | D69: 0.5471 | E69: 0.5450250236 | F69: 0.5511315684 | G69: 0.5515612273 | H69: 0.5276877145 | I69: 0.4798495677 | J69: 0.4376397599 | K69: 0.4182677512 | L69: 0.4143870229 | M69: 0.4031933635 | N69: 0
A70: Weighted Average Interest Coverage Ratio (calculated at the origination date) | B70: 1.65 | C70: 1.65 | D70: 1.65 | E70: 1.648604109 | F70: 1.655123795 | G70: 1.656452435 | H70: 1.654134926 | I70: 1.682207546 | J70: 1.699944156 | K70: 1.738693402 | L70: 1.761588941 | M70: 1.773470919 | N70: 0
A71: % of Paragon Originated Assets | B71: 0.3273 | C71: 0.3269 | D71: 0.3269 | E71: 0.3282969405 | F71: 0.3199429617 | G71: 0.318252098 | H71: 0.3390205665 | I71: 0.4010701202 | J71: 0.4934265777 | K71: 0.5212334571 | L71: 0.5566521662 | M71: 0.5837605933 | N71: 0
A72: % of Mortgage Trust Originated Assets | B72: 0.6727 | C72: 0.6731 | D72: 0.6731 | E72: 0.6717030595 | F72: 0.6800570383 | G72: 0.681747902 | H72: 0.6609794335 | I72: 0.5989298798 | J72: 0.5065734223 | K72: 0.4787665429 | L72: 0.4433478338 | M72: 0.4162394067 | N72: 0
A74: Underlying Assets - Paragon Mortgages 2010 Paragon Originated Assets | B74: 2013-11-29 | C74: 2014-02-28 | D74: 2014-05-30 | E74: 2014-08-29 | F74: 2014-11-28 | G74: 2015-02-27 | H74: =+H46 -> 2015-05-29 | I74: 2015-08-28 | J74: 2015-11-30 | K74: 2016-02-29 | L74: 2016-05-31 | M74: 2016-08-31 | N74: =+N46 -> 2016-11-30
A75: Weighted Average LTV | B75: 0.7081 | C75: 0.7079 | D75: 0.7069 | E75: 0.7068435476 | F75: 0.7084234604 | G75: 0.7069890557 | H75: 0.7058474885 | I75: 0.7077596911 | J75: 0.7074595726 | K75: 0.7156771443 | L75: 0.7125753924 | M75: 0.7081623824 | N75: 0
A76: Weighted Average Nationwide Indexed LTV | B76: 0.6809 | C76: 0.6658 | D76: 0.6551 | E76: 0.6234569932 | F76: 0.6205720216 | G76: 0.620062602 | H76: 0.6250384825 | I76: 0.6121985489 | J76: 0.6044455885 | K76: 0.6161871637 | L76: 0.6128054209 | M76: 0.5934783955 | N76: 0
A77: Weighted Average Halifax Indexed LTV | B77: 0.6776 | C77: 0.6703 | D77: 0.657 | E77: 0.6336845059 | F77: 0.6162302619 | G77: 0.6191421161 | H77: 0.6080152064 | I77: 0.5849320206 | J77: 0.5748523337 | K77: 0.5892694274 | L77: 0.5663694787 | M77: 0.5527432168 | N77: n/a
A78: % of Standard Variable Rate Mortgages | B78: 0 | C78: 0 | D78: 0.0082 | E78: 0.008209111394 | F78: 0.01029792846 | G78: 0.01046316184 | H78: 0.01079883246 | I78: 0.01472710515 | J78: 0.01658278138 | K78: 0.02039804234 | L78: 0.01843952489 | M78: 0.01950344446 | N78: 0
A79: % of Fixed Rate Mortgages (reverting to SVR) | B79: 0.0081 | C79: 0.0081 | D79: 0 | E79: 0 | F79: 0 | G79: 0 | H79: 0 | I79: 0 | J79: 0 | K79: 0 | L79: 0 | M79: 0 | N79: 0
A80: % of Fixed Rate Mortgages (reverting to Libor plus a variable margin) | B80: 0.1005 | C80: 0.0998 | D80: 0.0955 | E80: 0.08742463709 | F80: 0.08008023488 | G80: 0.04588039314 | H80: 0.04732062997 | I80: 0.02696295566 | J80: 0 | K80: 0 | L80: 0 | M80: 0 | N80: 0
A81: % of Base Rate Mortgages | B81: 0 | C81: 0 | D81: 0 | E81: 0 | F81: 0 | G81: 0 | H81: 0 | I81: 0 | J81: 0 | K81: 0 | L81: 0 | M81: 0 | N81: 0
A82: % of Libor Linked Mortgages (reverting to SVR) | B82: 0.0394 | C82: 0.0395 | D82: 0.0399 | E82: 0.03997596494 | F82: 0.001601901635 | G82: 0.001627604632 | H82: 0.001679820116 | I82: 0 | J82: 0 | K82: 0 | L82: 0 | M82: 0 | N82: 0
A83: % of Libor Linked Mortgages (reverting to Libor plus a variable margin) | B83: 0.852 | C83: 0.8526 | D83: 0.8564 | E83: 0.8367492661 | F83: 0.8684859867 | G83: 0.8312614291 | H83: 0.6273250129 | I83: 0.4526567661 | J83: 0.3693981715 | K83: 0.3523717245 | L83: 0.3454161035 | M83: 0.3614683939 | N83: 0
A84: % of Libor Linked Mortgages plus a Variable Margin | B84: 0 | C84: 0 | D84: 0 | E84: 0.02764102049 | F84: 0.0395339483 | G84: 0.1107674112 | H84: 0.3128757046 | I84: 0.5056531731 | J84: 0.6140190471 | K84: 0.6272302331 | L84: 0.6361443716 | M84: 0.6190281617 | N84: 0
A85: Weighted Average Loan Size | B85: 181933.46 | C85: 182413.43 | D85: 181940.15 | E85: 182581.6359 | F85: 176531.588 | G85: 175588.2301 | H85: 176112.8524 | I85: 169743.3474 | J85: 169857.3768 | K85: 153670.6645 | L85: 153558.8788 | M85: 153691.0357 | N85: 0
A86: Weighted Average Interest Rate | B86: 0.04751 | C86: 0.04751 | D86: 0.04753 | E86: 0.04767986733 | F86: 0.04779451684 | G86: 0.04801082551 | H86: 0.04909141814 | I86: 0.04987909831 | J86: 0.05014198955 | K86: 0.05020712394 | L86: 0.05020497579 | M86: 0.05016879829 | N86: 0
A87: Weighted Average Maturity Date (years) | B87: 19.34 | C87: 19.09 | D87: 18.87 | E87: 18.6198174 | F87: 18.40838264 | G87: 18.11435339 | H87: 17.8894475 | I87: 17.48282655 | J87: 17.1908367 | K87: 16.99745632 | L87: 16.49569114 | M87: 16.43625376 | N87: 0
A88: Weighted Average Seasoning (months) | B88: 7.51 | C88: 10.46 | D88: 13.48 | E88: 16.50459978 | F88: 18.98782616 | G88: 21.92983839 | H88: 24.92634745 | I88: 27.70051874 | J88: 30.6255358 | K88: 33.52638728 | L88: 36.61193863 | M88: 39.64262755 | N88: 0
A89: % of Interest Only Mortgages (optional switching to repayment) | B89: 0.8956 | C89: 0.8966 | D89: 0.896 | E89: 0.8972136191 | F89: 0.9313851359 | G89: 0.9307673864 | H89: 0.9306269315 | I89: 0.9203158983 | J89: 0.9127084935 | K89: 0.8991581091 | L89: 0.8933916212 | M89: 0.8910386978 | N89: 0
A90: % of Interest Only Mortgages (mandatory switching to repayment) | B90: 0.0475 | C90: 0.0476 | D90: 0.0481 | E90: 0.04818507633 | F90: 0.01189983009 | G90: 0.01209076647 | H90: 0.01247865258 | I90: 0.01472710515 | J90: 0.01658278138 | K90: 0.02039804234 | L90: 0.01843952489 | M90: 0.01950344446 | N90: 0
A91: % of Interest Only Mortgages | B91: 0 | C91: 0 | D91: 0 | E91: 0 | F91: 0 | G91: 0 | H91: 0 | I91: 0 | J91: 0 | K91: 0 | L91: 0 | M91: 0 | N91: 0
A92: % of Repayment Mortgages | B92: 0.0569 | C92: 0.0558 | D92: 0.0559 | E92: 0.05460130462 | F92: 0.05671503404 | G92: 0.05714184709 | H92: 0.0568944159 | I92: 0.06495699651 | J92: 0.07070872509 | K92: 0.08044384852 | L92: 0.08816885386 | M92: 0.08945785772 | N92: 0
A93: % of Mortgages in London | B93: 0.1944 | C93: 0.195 | D93: 0.1894 | E93: 0.1898421858 | F93: 0.1601488978 | G93: 0.1545799573 | H93: 0.1548760749 | I93: 0.1306114916 | J93: 0.1305092798 | K93: 0.1121825097 | L93: 0.1005257806 | M93: 0.09946507244 | N93: 0
A94: % of Mortgages in the South East | B94: 0.2716 | C94: 0.2725 | D94: 0.2734 | E94: 0.2739368409 | F94: 0.2823058275 | G94: 0.2817399068 | H94: 0.2767758379 | I94: 0.2730831622 | J94: 0.2747204298 | K94: 0.239432529 | L94: 0.2498833806 | M94: 0.2429359574 | N94: 0
A95: % of Owner Occupied Mortgages | B95: 0 | C95: 0 | D95: 0 | E95: 0 | F95: 0 | G95: 0 | H95: 0 | I95: 0 | J95: 0 | K95: 0 | L95: 0 | M95: 0 | N95: 0
A96: % of Investment Home Loans - Professional Landlords | B96: 0.7454 | C96: 0.7445 | D96: 0.7475 | E96: 0.7469361861 | F96: 0.7378741412 | G96: 0.7369134483 | H96: 0.7379907349 | I96: 0.752728709 | J96: 0.7472511491 | K96: 0.7771188392 | L96: 0.7710857207 | M96: 0.7771752175 | N96: 0
A97: % of Investment Home Loans - Emerging Professional Landlords | B97: 0.2546 | C97: 0.2555 | D97: 0.2525 | E97: 0.2530638139 | F97: 0.2621258588 | G97: 0.2630865517 | H97: 0.2620092651 | I97: 0.247271291 | J97: 0.2527488509 | K97: 0.2228811608 | L97: 0.2289142793 | M97: 0.2228247825 | N97: 0
A98: Weighted Average Interest Coverage Ratio (calculated at the origination date) | B98: 1.73 | C98: 1.73 | D98: 1.74 | E98: 1.7324549 | F98: 1.749111984 | G98: 1.753895092 | H98: 1.751337392 | I98: 1.777396064 | J98: 1.770885301 | K98: 1.807741686 | L98: 1.820022458 | M98: 1.830946291 | N98: 0
A99: Number of Properties in Possession | B99: 0 | C99: 0 | D99: 0 | E99: 0 | F99: 0 | G99: 0 | H99: 0 | I99: 0 | J99: 0 | K99: 0 | L99: 0 | M99: 0 | N99: 0
A100: Appointment of a Receiver of Rent | B100: 0 | C100: 0 | D100: 0 | E100: 0 | F100: 0 | G100: 0 | H100: 0 | I100: 0 | J100: 0 | K100: 0 | L100: 0 | M100: 0 | N100: 0
A101: PML Quarterly Losses | B101: 0 | C101: 0 | D101: 0 | E101: 0 | F101: 0 | G101: 0 | H101: 0 | I101: 0 | J101: 0 | K101: 0 | L101: 0 | M101: 0 | N101: 0
A102: Arrears excluding Receiver of Rent and Possession Cases
A103: Performing Loans | B103: 0.9977 | C103: 0.9976 | D103: 0.9976 | E103: 0.997614784 | F103: 1 | G103: 1 | H103: 1 | I103: 1 | J103: 1 | K103: 1 | L103: 1 | M103: 1 | N103: 0
A104: >1 to 2 months arrears | B104: 0.0023 | C104: 0.0024 | D104: 0.0024 | E104: 0.002385215999 | F104: 0 | G104: 0 | H104: 0 | I104: 0 | J104: 0 | K104: 0 | L104: 0 | M104: 0 | N104: 0
A105: >2 to 3 months arrears | B105: 0 | C105: 0 | D105: 0 | E105: 0 | F105: 0 | G105: 0 | H105: 0 | I105: 0 | J105: 0 | K105: 0 | L105: 0 | M105: 0 | N105: 0
A106: >3 months arrears | B106: 0 | C106: 0 | D106: 0 | E106: 0 | F106: 0 | G106: 0 | H106: 0 | I106: 0 | J106: 0 | K106: 0 | L106: 0 | M106: 0 | N106: 0
A107: Total | B107: =SUM(B103:B106) -> 1 | C107: 1 | D107: 1 | E107: 1 | F107: 1 | G107: 1 | H107: 1 | I107: 1 | J107: 1 | K107: 1 | L107: 1 | M107: 1 | N107: 0
A109: Underlying Assets - Paragon Mortgages 2010 Mortgage Trust Originated Assets | B109: 2013-11-29 | C109: 2014-02-28 | D109: 2014-05-30 | E109: 2014-08-29 | F109: 2014-11-28 | G109: 2015-02-27 | H109: =+H74 -> 2015-05-29 | I109: 2015-08-28 | J109: 2015-11-30 | K109: 2016-02-29 | L109: 2016-05-31 | M109: 2016-08-31 | N109: =+N74 -> 2016-11-30
A110: Weighted Average LTV | B110: 0.7363 | C110: 0.7361 | D110: 0.7359 | E110: 0.736312241 | F110: 0.7358712032 | G110: 0.7353142377 | H110: 0.7351467298 | I110: 0.7325909834 | J110: 0.7289771888 | K110: 0.7253787844 | L110: 0.723126502 | M110: 0.7251324298 | N110: 0
A111: Weighted Average Nationwide Indexed LTV | B111: 0.7103 | C111: 0.6939 | D111: 0.6788 | E111: 0.6426262093 | F111: 0.6349323575 | G111: 0.6332171198 | H111: 0.637610149 | I111: 0.621463 | J111: 0.6138294854 | K111: 0.6082488012 | L111: 0.6081964393 | M111: 0.5884104912 | N111: 0
A112: Weighted Average Halifax Indexed LTV | B112: 0.7139 | C112: 0.708 | D112: 0.69 | E112: 0.6627181936 | F112: 0.6354751915 | G112: 0.6416008916 | H112: 0.631218351 | I112: 0.6033344776 | J112: 0.5908413113 | K112: 0.5874928703 | L112: 0.5703890422 | M112: 0.5505259286 | N112: n/a
A113: % of Standard Variable Rate Mortgages | B113: 0 | C113: 0 | D113: 0.0005 | E113: 0.0004592663522 | F113: 0.001177057544 | G113: 0.0004667780317 | H113: 0.0005293158545 | I113: 0.0008155879978 | J113: 0 | K113: 0 | L113: 0 | M113: 0 | N113: 0
A114: % of Fixed Rate Mortgages (reverting to SVR) | B114: 0.0005 | C114: 0.0005 | D114: 0 | E114: 0 | F114: 0 | G114: 0 | H114: 0 | I114: 0 | J114: 0 | K114: 0 | L114: 0 | M114: 0 | N114: 0
A115: % of Fixed Rate Mortgages (reverting to Libor plus a variable margin) | B115: 0.5143 | C115: 0.5151 | D115: 0.5151 | E115: 0.5155096147 | F115: 0.5147799936 | G115: 0.5145457794 | H115: 0.3110285284 | I115: 0.197292807 | J115: 0.01031069556 | K115: 0.01417579521 | L115: 0.01805872685 | M115: 0 | N115: 0
A116: % of Base Rate Mortgages | B116: 0 | C116: 0 | D116: 0 | E116: 0 | F116: 0 | G116: 0 | H116: 0 | I116: 0 | J116: 0 | K116: 0 | L116: 0 | M116: 0 | N116: 0
A117: % of Libor Linked Mortgages (reverting to SVR) | B117: 0.0007 | C117: 0.0007 | D117: 0.0007 | E117: 0.0007083098421 | F117: 0 | G117: 0 | H117: 0 | I117: 0 | J117: 0 | K117: 0 | L117: 0 | M117: 0 | N117: 0
A118: % of Libor Linked Mortgages (reverting to Libor plus a variable margin) | B118: 0.4845 | C118: 0.4838 | D118: 0.4837 | E118: 0.4833228091 | F118: 0.4836748953 | G118: 0.4767957753 | H118: 0.4162452944 | I118: 0.1643610339 | J118: 0 | K118: 0 | L118: 0 | M118: 0 | N118: 0
A119: % of Libor Linked Mortgages plus a Variable Margin | B119: 0 | C119: 0 | D119: 0 | E119: 0 | F119: 0 | G119: 0.008191667316 | H119: 0.2721968613 | I119: 0.637530571 | J119: 0.9896893044 | K119: 0.9858242048 | L119: 0.9819412731 | M119: 1 | N119: 0
A120: Weighted Average Loan Size | B120: 133938.54 | C120: 133990.12 | D120: 133723.71 | E120: 133278.2477 | F120: 132992.1929 | G120: 133003.9743 | H120: 129866.9741 | I120: 125797.8978 | J120: 122586.1061 | K120: 120715.8591 | L120: 117426.73 | M120: 118249.4372 | N120: 0
A121: Weighted Average Interest Rate | B121: 0.03463 | C121: 0.03463 | D121: 0.03463 | E121: 0.03463179295 | F121: 0.03463536829 | G121: 0.03468513688 | H121: 0.03944867394 | I121: 0.04684829322 | J121: 0.05318079837 | K121: 0.05309706459 | L121: 0.05302032681 | M121: 0.05319170357 | N121: 0
A122: Weighted Average Maturity Date (years) | B122: 20.25 | C122: 20 | D122: 19.76 | E122: 19.51164048 | F122: 19.24695227 | G122: 18.98892048 | H122: 18.87406186 | I122: 18.71567873 | J122: 18.14060327 | K122: 17.9192267 | L122: 17.57415872 | M122: 17.30081792 | N122: 0
A123: Weighted Average Seasoning (months) | B123: 5.56 | C123: 8.52 | D123: 11.54 | E123: 14.55310261 | F123: 17.54179143 | G123: 20.4880845 | H123: 23.32770868 | I123: 26.15072642 | J123: 29.32505153 | K123: 32.47421902 | L123: 35.59056379 | M123: 38.71712562 | N123: 0
A124: % of Interest Only Mortgages (optional switching to repayment) | B124: 0.9292 | C124: 0.9301 | D124: 0.9313 | E124: 0.931284331 | F124: 0.9320183147 | G124: 0.9328217621 | H124: 0.9366665777 | I124: 0.9418120758 | J124: 0.9327770382 | K124: 0.9281661525 | L124: 0.9290620469 | M124: 0.9300191403 | N124: 0
A125: % of Interest Only Mortgages (mandatory switching to repayment) | B125: 0 | C125: 0 | D125: 0 | E125: 0 | F125: 0 | G125: 0 | H125: 0 | I125: 0 | J125: 0 | K125: 0 | L125: 0 | M125: 0 | N125: 0
A126: % of Interest Only Mortgages | B126: 0.0011 | C126: 0.0011 | D126: 0.0012 | E126: 0.001167576194 | F126: 0.001177057544 | G126: 0.0004667780317 | H126: 0.0005293158545 | I126: 0.0008155879978 | J126: 0 | K126: 0 | L126: 0 | M126: 0 | N126: 0
A127: % of Repayment Mortgages | B127: 0.0696 | C127: 0.0688 | D127: 0.0675 | E127: 0.06754809279 | F127: 0.06680462775 | G127: 0.06671145986 | H127: 0.06280410646 | I127: 0.05737233617 | J127: 0.06722296183 | K127: 0.07183384749 | L127: 0.07093795306 | M127: 0.06998085969 | N127: 0
A128: % of Mortgages in London | B128: 0.2215 | C128: 0.2219 | D128: 0.2236 | E128: 0.2249667666 | F128: 0.2230943533 | G128: 0.2233638242 | H128: 0.1984503552 | I128: 0.1679594673 | J128: 0.1704606358 | K128: 0.1741546723 | L128: 0.1454790391 | M128: 0.1481622153 | N128: 0
A129: % of Mortgages in the South East | B129: 0.3662 | C129: 0.367 | D129: 0.3652 | E129: 0.3627438774 | F129: 0.3626870275 | G129: 0.3642862968 | H129: 0.3681806407 | I129: 0.3645100526 | J129: 0.3425210424 | K129: 0.336467156 | L129: 0.3371340068 | M129: 0.3362515722 | N129: 0
A130: % of Owner Occupied Mortgages | B130: 0 | C130: 0 | D130: 0 | E130: 0 | F130: 0 | G130: 0 | H130: 0 | I130: 0 | J130: 0 | K130: 0 | L130: 0 | M130: 0 | N130: 0
A131: % of Investment Home Loans - Professional Landlords | B131: 0.3083 | C131: 0.3079 | D131: 0.3099 | E131: 0.3122780353 | F131: 0.3129013914 | G131: 0.3137736414 | H131: 0.3360441146 | I131: 0.3644056606 | J131: 0.3822677116 | K131: 0.3690147365 | L131: 0.3527398318 | M131: 0.3438462773 | N131: 0
A132: % of Investment Home Loans - Emerging Professional Landlords | B132: 0.6917 | C132: 0.6921 | D132: 0.6901 | E132: 0.6877219647 | F132: 0.6870986086 | G132: 0.6862263586 | H132: 0.6639558854 | I132: 0.6355943394 | J132: 0.6177322884 | K132: 0.6309852635 | L132: 0.6472601682 | M132: 0.6561537227 | N132: 0
A133: Weighted Average Interest Coverage Ratio (calculated at the origination date) | B133: 1.55 | C133: 1.55 | D133: 1.55 | E133: 1.550578685 | F133: 1.550849971 | G133: 1.549621604 | H133: 1.544646049 | I133: 1.550538933 | J133: 1.564868433 | K133: 1.580384585 | L133: 1.601209204 | M133: 1.591279472 | N133: 0
A134: Number of Properties in Possession | B134: 0 | C134: 0 | D134: 0 | E134: 0 | F134: 0 | G134: 0 | H134: 0 | I134: 0 | J134: 0 | K134: 0 | L134: 0 | M134: 0 | N134: 0
A135: Appointment of a Receiver of Rent | B135: 0 | C135: 0 | D135: 0 | E135: 0 | F135: 1 | G135: 0 | H135: 0 | I135: 0 | J135: 0 | K135: 0 | L135: 0 | M135: 0 | N135: 0
A136: MTL Quarterly Losses | B136: 0 | C136: 0 | D136: 0 | E136: 0 | F136: 0 | G136: 2 | H136: -2 | I136: 0 | J136: 0 | K136: 0 | L136: 0 | M136: 0 | N136: 0
A137: Arrears excluding Receiver of Rent and Possession Cases
A138: Performing Loans | B138: 1 | C138: 0.999 | D138: 0.9993 | E138: 1 | F138: 1 | G138: 1 | H138: 1 | I138: 1 | J138: 1 | K138: 1 | L138: 1 | M138: 1 | N138: 0
A139: >1 to 2 months arrears | B139: 0 | C139: 0.001 | D139: 0 | E139: 0 | F139: 0 | G139: 0 | H139: 0 | I139: 0 | J139: 0 | K139: 0 | L139: 0 | M139: 0 | N139: 0
A140: >2 to 3 months arrears | B140: 0 | C140: 0 | D140: 0.0007 | E140: 0 | F140: 0 | G140: 0 | H140: 0 | I140: 0 | J140: 0 | K140: 0 | L140: 0 | M140: 0 | N140: 0
A141: >3 months arrears | B141: 0 | C141: 0 | D141: 0 | E141: 0 | F141: 0 | G141: 0 | H141: 0 | I141: 0 | J141: 0 | K141: 0 | L141: 0 | M141: 0 | N141: 0
A142: Total | B142: =SUM(B138:B141) -> 1 | C142: 1 | D142: 1 | E142: 1 | F142: 1 | G142: 1 | H142: 1 | I142: 1 | J142: 1 | K142: 1 | L142: 1 | M142: 1 | N142: 0

Sheet Graphs
K2: PARAGON MORTGAGES (NO.18) PLC
